bitfinex/quotes_SOLUSD_20220307
["timestamp","ask_amount","ask_price","bid_price","bid_amount"]
[1646649594033,1.76861673,82.609,82.602,0.00194953]
[1646649594230,0.14806757,82.609,82.602,0.00194953]
[1646649594436,1.62054916,82.607,82.6,1819.27304953]
[1646649594629,1.62054916,82.606,82.6,1784.27304953]
[1646649595329,1.62054916,82.605,82.6,1784.27304953]
[1646649595731,1.62054916,82.603,82.6,1784.27304953]
[1646649595930,54.04196099,82.602,82.6,1784.27304953]
[1646649596132,52.42141183,82.602,82.6,1784.27304953]
[1646649596834,27.72352334,82.612,82.6,1784.27304953]
[1646649597835,61.33263076,82.611,82.6,1784.27304953]
[1646649598032,61.33263076,82.611,82.6,1692.92792838]
[1646649598234,27.72352334,82.61,82.6,1692.92792838]
[1646649599836,0.20745029,82.609,82.6,1692.92792838]
[1646649600236,27.72352334,82.608,82.6,1692.92792838]
[1646649600837,21.42818189,82.62,82.6,1692.92792838]
[1646649600838,3.25318189,82.62,82.6,1692.92792838]
[1646649601040,6.55453556,82.624,82.601,0.18856303]
[1646649601237,1.62815651,82.618,82.6,1692.92792838]
[1646649601538,4.10324869,82.626,82.601,0.14294509]
[1646649602339,4.10324869,82.626,82.6,1692.92792838]
[1646649602539,4.10324869,82.626,82.601,0.13482853]
[1646649602738,4.10324869,82.626,82.6,1692.92792838]
[1646649603240,4.10324869,82.626,82.601,0.22801524]
[1646649603437,4.869e-05,82.626,82.601,0.22801524]
[1646649604239,4.869e-05,82.626,82.6,1692.92792838]
[1646649605337,4.869e-05,82.626,82.601,0.22976718]
[1646649605539,4.869e-05,82.626,82.6,1692.92792838]
[1646649605940,4.869e-05,82.626,82.601,0.33314783]
[1646649606941,45.6594,82.674,82.601,0.33314783]
[1646649608542,45.6594,82.674,82.6,1725.76382838]
[1646649610445,0.38101431,82.673,82.6,1725.76382838]
[1646649610646,0.38101431,82.673,82.601,121.8]
[1646649610848,3.25318189,82.697,82.611,121.8]
[1646649611046,23.1703,82.699,82.621,121.8]
[1646649611249,23.1703,82.699,82.63,14.68]
[1646649611447,23.1703,82.699,82.631,0.3640274]
[1646649611949,23.1703,82.699,82.63,14.68]
[1646649612748,23.1703,82.699,82.64,18.1472]
[1646649612947,23.1703,82.699,82.641,0.19519343]
[1646649613347,26.85685667,82.715,82.641,0.19519343]
[1646649613548,26.85685667,82.715,82.643,0.34437121]
[1646649613847,48.65767094,82.714,82.65,18.145]
[1646649614248,26.85685667,82.713,82.641,6.047]
[1646649615147,0.17810048,82.712,82.641,6.047]
[1646649615548,26.85685667,82.711,82.641,6.047]
[1646649616770,26.85685667,82.711,82.623,6.047]
[1646649616771,143.93004514,82.71,82.623,6.047]
[1646649616973,0.38101431,82.709,82.623,6.047]
[1646649617172,18.1599,82.69,82.623,6.047]
[1646649617371,73.66804358,82.689,82.61,14.68]
[1646649617973,73.66804358,82.689,82.611,6.049]
[1646649618975,73.66804358,82.689,82.623,6.049]
[1646649619577,73.66804358,82.689,82.611,6.049]
[1646649620375,26.85685667,82.688,82.61,14.68]
[1646649620775,22.6957,82.687,82.602,23.0494]
[1646649621175,49.55255667,82.687,82.603,6.05]
[1646649624178,22.6957,82.687,82.604,0.18317953]
[1646649624477,22.6957,82.687,82.606,0.18317953]
[1646649624680,22.6957,82.687,82.61,14.68]
[1646649625080,22.6957,82.687,82.611,6.049]
[1646649626480,22.6957,82.687,82.603,6.049]
[1646649628481,22.6957,82.687,82.602,23.0494]
[1646649629083,24.53419001,82.686,82.603,0.23107802]
[1646649629282,24.53419001,82.686,82.602,23.0494]
[1646649630282,9.80333037,82.685,82.602,23.0494]
[1646649630681,9.80333037,82.685,82.603,6.05]
[1646649631182,3.25318189,82.683,82.603,6.05]
[1646649631387,3.25318189,82.683,82.604,0.25224587]
[1646649631582,3.25318189,82.685,82.605,6.05]
[1646649631782,3.25318189,82.685,82.606,0.25224587]
[1646649631984,3.25318189,82.685,82.607,6.049]
[1646649632187,3.25318189,82.684,82.608,0.25224587]
[1646649632487,3.25318189,82.685,82.607,6.049]
[1646649632684,3.25318189,82.684,82.603,6.049]
[1646649633587,3.46093559,82.683,82.603,6.049]
[1646649633784,6.55014848,82.682,82.603,6.049]
[1646649634185,3.25318189,82.683,82.603,6.049]
[1646649634385,3.25318189,82.68,82.603,6.049]
[1646649634585,24.7035,82.679,82.603,6.049]
[1646649634786,6.55014848,82.678,82.603,6.049]
[1646649636585,6.55014848,82.678,82.604,0.1211178]
[1646649636791,6.55014848,82.678,82.605,6.05]
[1646649636987,6.55014848,82.678,82.603,6.05]
[1646649637394,0.3151825,82.674,82.603,6.05]
[1646649637610,3.25318189,82.658,82.603,6.05]
[1646649637798,125.05318189,82.656,82.6,1692.92792838]
[1646649638002,3.25318189,82.648,82.6,1692.92792838]
[1646649638199,3.25318189,82.632,82.6,1692.92792838]
[1646649638399,3.25318189,82.628,82.6,1692.92792838]
[1646649638599,121.8,82.626,82.6,1675.67232838]
[1646649638799,3.25318189,82.624,82.6,1656.63242838]
[1646649639199,26.33441146,82.625,82.6,1656.63242838]
[1646649639400,4.05014848,82.623,82.6,1656.63242838]
[1646649639600,62.25513362,82.627,82.6,1656.63242838]
[1646649639800,3.25318189,82.63,82.6,1656.63242838]
[1646649640205,2.83613526,82.636,82.6,1656.63242838]
[1646649640603,18.173,82.63,82.6,1656.63242838]
[1646649642202,44.50741146,82.63,82.6,1656.63242838]
[1646649643222,44.50741146,82.63,82.601,0.12327954]
[1646649643422,44.50741146,82.63,82.6,1656.63242838]
[1646649643628,44.50741146,82.63,82.601,0.11504098]
[1646649644123,2.83613526,82.636,82.6,1656.63242838]
[1646649644523,26.33441146,82.635,82.6,1656.63242838]
[1646649645024,2.83613526,82.634,82.6,1656.63242838]
[1646649645427,26.33441146,82.633,82.6,1656.63242838]
[1646649645827,2.83613526,82.632,82.6,1656.63242838]
[1646649646226,29.17054672,82.632,82.6,1656.63242838]
[1646649646728,2.83613526,82.631,82.6,1656.63242838]
[1646649646927,26.33441146,82.632,82.6,1656.63242838]
[1646649647133,2.83613526,82.641,82.6,1656.63242838]
[1646649647329,23.3103,82.646,82.6,1656.63242838]
[1646649647628,23.3103,82.646,82.601,0.155893]
[1646649647833,23.3103,82.646,82.6,1656.63242838]
[1646649649232,47.46842463,82.645,82.6,1656.63242838]
[1646649649835,73.80283609,82.645,82.6,1656.63242838]
[1646649650433,121.8,82.644,82.6,1656.63242838]
[1646649650833,26.33441146,82.643,82.6,1656.63242838]
[1646649651234,121.8,82.639,82.6,1656.63242838]
[1646649651635,5.25810494,82.636,82.6,1656.63242838]
[1646649652037,121.8,82.634,82.6,1656.63242838]
[1646649652435,121.8,82.632,82.6,1656.63242838]
[1646649652843,148.13441146,82.632,82.6,1656.63242838]
[1646649653238,139.9737,82.63,82.6,1656.63242838]
[1646649653839,18.1737,82.63,82.6,1656.63242838]
[1646649654040,2.83613526,82.633,82.6,1656.63242838]
[1646649654640,121.8,82.632,82.6,1656.63242838]
[1646649655040,121.8,82.63,82.6,1656.63242838]
[1646649655539,26.33441146,82.629,82.6,1656.63242838]
[1646649661449,26.33441146,82.629,82.601,0.14264173]
[1646649661650,26.33441146,82.629,82.6,1656.63242838]
[1646649663950,124.63613526,82.628,82.6,1656.63242838]
[1646649664156,5.47272006,82.627,82.6,1656.63242838]
[1646649664351,121.8,82.626,82.6,1656.63242838]
[1646649664551,3.25318189,82.625,82.6,1656.63242838]
[1646649664950,121.8,82.624,82.6,1656.63242838]
[1646649665151,150.97054672,82.624,82.6,1656.63242838]
[1646649665555,60.5972,82.62,82.6,1656.63242838]
[1646649665753,4.93676027,82.618,82.6,1656.63242838]
[1646649665957,18.177,82.61,82.6,1656.63242838]
[1646649666453,44.51141146,82.61,82.6,1656.63242838]
[1646649670557,0.10632325,82.609,82.6,1656.63242838]
[1646649670958,26.33441146,82.608,82.6,1656.63242838]
[1646649674466,18.177,82.61,82.601,3.03219997]
[1646649674668,18.177,82.61,82.602,0.15583695]
[1646649674865,18.177,82.61,82.601,3.03219997]
[1646649675670,44.51141146,82.61,82.601,3.03219997]
[1646649676283,2.83613526,82.617,82.602,0.16100672]
[1646649676480,3.25318189,82.619,82.602,0.16100672]
[1646649676681,26.33441146,82.623,82.602,0.16100672]
[1646649676881,22.9579,82.636,82.601,9.08319997]
[1646649677080,26.33441146,82.635,82.601,9.08319997]
[1646649677480,26.33441146,82.635,82.601,3.03219997]
[1646649677681,121.8,82.634,82.601,3.03219997]
[1646649678081,4.59799127,82.631,82.601,3.03219997]
[1646649678482,44.50751146,82.63,82.601,3.03219997]
[1646649679284,26.33441146,82.63,82.601,3.03219997]
[1646649679683,3.25318189,82.631,82.601,3.03219997]
[1646649679884,22.4579,82.636,82.601,3.03219997]
[1646649680087,3.25318189,82.646,82.602,0.16475859]
[1646649680284,3.25318189,82.647,82.602,0.16475859]
[1646649680485,3.25318189,82.647,82.603,6.051]
[1646649680687,3.25318189,82.648,82.602,6.051]
[1646649680888,3.25318189,82.649,82.602,6.051]
[1646649681089,3.25318189,82.648,82.602,6.051]
[1646649681288,3.25318189,82.652,82.602,6.051]
[1646649681689,26.33441146,82.651,82.601,3.03219997]
[1646649684496,0.27708217,82.649,82.601,3.03219997]
[1646649684696,60.70443152,82.65,82.601,3.03219997]
[1646649684894,26.33441146,82.648,82.601,3.03219997]
[1646649685496,26.33441146,82.648,82.602,6.051]
[1646649686703,29.58759335,82.648,82.602,6.051]
[1646649686999,3.25318189,82.647,82.602,6.051]
[1646649687200,29.58759335,82.647,82.601,3.03219997]
[1646649687401,26.33441146,82.646,82.601,3.03219997]
[1646649689303,3.25318189,82.652,82.601,3.03219997]
[1646649689501,29.58759335,82.659,82.602,0.60168812]
[1646649689801,26.33441146,82.659,82.602,0.60168812]
[1646649690400,26.33441146,82.659,82.603,6.051]
[1646649690601,3.25318189,82.669,82.604,0.17561634]
[1646649690800,26.33441146,82.672,82.603,0.26085234]
[1646649691203,3.25318189,82.682,82.604,6.05]
[1646649691403,3.25318189,82.682,82.605,0.4138084]
[1646649691612,26.33441146,82.681,82.604,6.05]
[1646649691804,26.33441146,82.681,82.605,0.24721966]
[1646649692002,26.33441146,82.681,82.606,6.05]
[1646649692208,26.33441146,82.681,82.607,0.28220165]
[1646649692403,26.33441146,82.681,82.608,6.05]
[1646649692803,26.33441146,82.681,82.604,6.05]
[1646649693005,3.25318189,82.691,82.61,136.48]
[1646649693204,26.33441146,82.694,82.611,0.2007907]
[1646649693404,3.25318189,82.705,82.611,0.2007907]
[1646649693604,26.33441146,82.707,82.611,0.2007907]
[1646649693803,26.33441146,82.706,82.611,0.2007907]
[1646649694007,26.33441146,82.706,82.612,6.048]
[1646649694206,3.25318189,82.711,82.613,0.25627794]
[1646649694406,26.33441146,82.72,82.631,121.8]
[1646649694704,26.33441146,82.72,82.641,0.25627794]
[1646649694903,26.33441146,82.72,82.642,6.047]
[1646649695106,26.33441146,82.72,82.641,6.047]
[1646649696104,26.33441146,82.72,82.64,154.6271]
[1646649697010,26.33441146,82.72,82.64,14.68]
[1646649697204,51.45138064,82.72,82.64,14.68]
[1646649697606,26.33441146,82.719,82.64,14.68]
[1646649698108,26.33441146,82.719,82.64,154.6267]
[1646649698507,26.33441146,82.719,82.641,6.047]
[1646649700408,25.83441146,82.719,82.641,6.047]
[1646649700709,26.29107813,82.718,82.641,6.047]
[1646649701509,51.40804731,82.718,82.641,6.047]
[1646649702010,29.12721339,82.717,82.641,6.047]
[1646649702410,51.58795734,82.716,82.64,14.68]
[1646649702812,51.40804731,82.715,82.64,14.68]
[1646649703109,26.29107813,82.714,82.64,14.68]
[1646649703310,51.40804731,82.714,82.64,14.68]
[1646649703509,25.11696918,82.713,82.64,14.68]
[1646649703710,51.40804731,82.713,82.64,14.68]
[1646649704012,51.40804731,82.712,82.64,14.68]
[1646649704211,173.20804731,82.712,82.614,6.047]
[1646649704411,121.8,82.709,82.62,14.68]
[1646649704613,4.2546443,82.708,82.614,6.047]
[1646649704812,3.25318189,82.706,82.601,23.726]
[1646649705012,3.25318189,82.702,82.601,23.726]
[1646649705212,5.26734676,82.699,82.601,23.726]
[1646649705411,121.8,82.679,82.601,23.726]
[1646649706013,26.29107813,82.678,82.601,23.726]
[1646649706412,44.6111876,82.678,82.601,23.726]
[1646649706612,0.21963453,82.677,82.601,23.726]
[1646649706812,26.51071266,82.677,82.601,23.726]
[1646649707014,52.46240927,82.676,82.601,23.726]
[1646649708615,52.46240927,82.676,82.602,0.15780782]
[1646649709016,52.46240927,82.676,82.601,23.726]
[1646649709818,26.85030252,82.688,82.602,0.50976892]
[1646649710038,26.85030252,82.701,82.602,122.30976892]
[1646649710215,26.85030252,82.701,82.601,23.726]
[1646649710216,26.85030252,82.701,82.604,122.30976892]
[1646649710417,26.85030252,82.701,82.611,121.8]
[1646649710617,53.14138065,82.701,82.62,14.68]
[1646649710816,51.36981828,82.7,82.62,14.68]
[1646649711017,78.2201208,82.7,82.62,14.68]
[1646649711218,26.85030252,82.699,82.62,14.68]
[1646649711421,26.85030252,82.699,82.603,24.4478]
[1646649711620,121.8,82.697,82.603,24.4478]
[1646649712020,47.44732286,82.698,82.603,24.4478]
[1646649712021,121.8,82.695,82.603,24.4478]
[1646649712421,121.8,82.689,82.603,24.4478]
[1646649712819,71.46149012,82.688,82.603,24.4478]
[1646649713219,71.46149012,82.687,82.603,24.4478]
[1646649713619,71.46149012,82.686,82.603,24.4478]
[1646649714021,71.46149012,82.685,82.603,24.4478]
[1646649714523,26.29107813,82.684,82.603,24.4478]
[1646649715022,44.6111876,82.684,82.603,24.4478]
[1646649715223,18.32010947,82.683,82.603,24.4478]
[1646649715422,44.6111876,82.683,82.603,24.4478]
[1646649715623,53.14138065,82.682,82.603,24.4478]
[1646649716022,53.14138065,82.681,82.603,24.4478]
[1646649716423,53.14138065,82.68,82.603,24.4478]
[1646649716824,26.29107813,82.679,82.603,24.4478]
[1646649719543,49.35797813,82.679,82.603,24.4478]
[1646649719844,26.29107813,82.678,82.603,24.4478]
[1646649720644,26.29107813,82.678,82.605,0.19193065]
[1646649721449,53.14138065,82.678,82.605,0.19193065]
[1646649721648,1.62981896,82.656,82.605,0.19193065]
[1646649721846,53.14138065,82.678,82.605,0.19193065]
[1646649721847,62.66362124,82.655,82.605,0.19193065]
[1646649722046,1.62981896,82.652,82.605,0.19193065]
[1646649722449,1.62981896,82.653,82.605,0.19193065]
[1646649723747,1.62981896,82.653,82.606,0.22290612]
[1646649724247,1.62981896,82.665,82.61,14.68]
[1646649724448,1.62981896,82.665,82.611,0.45855837]
[1646649724651,1.62981896,82.678,82.611,0.45855837]
[1646649725048,1.62981896,82.675,82.611,0.45855837]
[1646649725253,1.62981896,82.675,82.612,121.8]
[1646649725451,1.62981896,82.674,82.612,121.8]
[1646649726251,1.62981896,82.675,82.612,121.8]
[1646649726452,26.29107813,82.693,82.612,121.8]
[1646649726453,1.62981896,82.674,82.612,121.8]
[1646649726652,1.62981896,82.673,82.612,121.8]
[1646649727856,1.62981896,82.671,82.612,121.8]
[1646649728254,1.62981896,82.67,82.612,121.8]
[1646649729056,1.62981896,82.676,82.612,121.8]
[1646649729357,1.62981896,82.675,82.612,121.8]
[1646649730558,1.62981896,82.676,82.612,121.8]
[1646649730956,1.62981896,82.675,82.612,121.8]
[1646649731358,1.62981896,82.672,82.621,121.8]
[1646649731557,1.62981896,82.676,82.63,136.48]
[1646649732561,1.62981896,82.677,82.63,136.48]
[1646649732761,1.62981896,82.679,82.63,136.48]
[1646649732964,1.62981896,82.683,82.63,136.48]
[1646649733363,1.62981896,82.683,82.631,0.12246385]
[1646649733563,1.62981896,82.683,82.63,136.48]
[1646649733763,1.62981896,82.687,82.63,136.48]
[1646649734166,1.63103935,82.695,82.633,121.8]
[1646649734364,1.63103935,82.699,82.634,0.45590082]
[1646649734565,3.25318189,82.722,82.634,0.45590082]
[1646649734566,1.63103935,82.711,82.641,121.8]
[1646649734767,1.63103935,82.714,82.661,121.8]
[1646649734965,1.63103935,82.72,82.67,136.48]
[1646649735166,1.63103935,82.72,82.68,14.68]
[1646649735367,1.63103935,82.721,82.681,0.47961571]
[1646649735667,1.63103935,82.736,82.681,0.47961571]
[1646649735868,1.63103935,82.737,82.681,0.47961571]
[1646649736068,1.63103935,82.736,82.681,0.47961571]
[1646649736265,1.63103935,82.737,82.681,0.47961571]
[1646649736470,1.63103935,82.74,82.681,0.47961571]
[1646649736866,1.63103935,82.753,82.681,0.47961571]
[1646649737068,1.63103935,82.757,82.681,0.47961571]
[1646649737268,1.63103935,82.75,82.68,14.68]
[1646649737468,1.63103935,82.747,82.68,14.68]
[1646649737668,47.16009134,82.746,82.68,136.48]
[1646649737875,73.45116947,82.746,82.68,136.48]
[1646649738274,1.63103935,82.745,82.68,136.48]
[1646649738472,27.92211748,82.746,82.68,136.48]
[1646649738675,26.29107813,82.746,82.68,136.48]
[1646649739375,50.84889265,82.745,82.68,136.48]
[1646649739776,50.84889265,82.745,82.68,14.68]
[1646649740175,50.84889265,82.745,82.68,32.8181]
[1646649740576,50.84889265,82.745,82.68,14.68]
[1646649741181,1.63103935,82.738,82.671,22.6609]
[1646649741377,1.63103935,82.736,82.662,24.8354]
[1646649741677,48.95772561,82.729,82.662,24.8354]
[1646649741875,48.95772561,82.729,82.65,14.68]
[1646649742077,48.52716385,82.728,82.65,14.68]
[1646649742281,1.63103935,82.727,82.65,14.68]
[1646649742476,26.29107813,82.727,82.65,14.68]
[1646649742681,26.29107813,82.726,82.65,14.68]
[1646649743792,39.61076628,82.728,82.65,14.68]
[1646649744594,26.29107813,82.727,82.65,14.68]
[1646649744795,27.92211748,82.727,82.65,14.68]
[1646649744994,1.63103935,82.726,82.65,14.68]
[1646649745395,27.92211748,82.726,82.65,14.68]
[1646649745594,26.29107813,82.725,82.65,14.68]
[1646649745794,27.92211748,82.725,82.65,14.68]
[1646649746596,1.63103935,82.724,82.65,14.68]
[1646649746799,1.63103935,82.725,82.651,0.13477351]
[1646649746995,1.63103935,82.725,82.65,14.68]
[1646649747695,1.63103935,82.723,82.65,14.68]
[1646649748097,1.63103935,82.724,82.65,14.68]
[1646649748295,1.63103935,82.725,82.65,14.68]
[1646649748897,1.63103935,82.724,82.65,14.68]
[1646649749096,1.63103935,82.725,82.65,32.8259]
[1646649749397,1.63103935,82.724,82.65,32.8259]
[1646649749599,1.63103935,82.723,82.65,32.8259]
[1646649749902,1.63103935,82.722,82.65,32.8259]
[1646649750398,1.63103935,82.723,82.651,121.8]
[1646649750598,1.63103935,82.721,82.65,32.8259]
[1646649751499,1.63103935,82.719,82.65,32.8259]
[1646649751700,1.63103935,82.72,82.65,32.8259]
[1646649752501,1.63103935,82.719,82.65,32.8259]
[1646649752799,1.63103935,82.72,82.65,32.8259]
[1646649753802,1.63103935,82.714,82.65,32.8259]
[1646649754000,49.55363652,82.713,82.65,32.8259]
[1646649754903,49.55363652,82.713,82.651,121.8]
[1646649755104,1.63103935,82.716,82.652,0.16521319]
[1646649755304,22.9913,82.728,82.652,0.16521319]
[1646649755305,1.63103935,82.72,82.652,0.16521319]
[1646649755508,1.63103935,82.722,82.652,0.16521319]
[1646649756105,49.03205025,82.721,82.652,0.16521319]
[1646649756309,1.63103935,82.72,82.651,121.8]
[1646649756805,1.63103935,82.717,82.651,121.8]
[1646649757207,1.63103935,82.716,82.651,121.8]
[1646649757608,1.63103935,82.719,82.651,121.8]
[1646649758013,1.63103935,82.717,82.65,32.8255]
[1646649758209,1.63103935,82.711,82.65,14.68]
[1646649758408,1.63103935,82.706,82.632,24.6411]
[1646649758609,47.75742694,82.705,82.632,24.6411]
[1646649758812,49.38846629,82.705,82.632,24.6411]
[1646649759111,47.75742694,82.705,82.632,24.6411]
[1646649759311,22.7545,82.704,82.632,24.6411]
[1646649759519,1.63103935,82.7,82.632,24.6411]
[1646649759711,1.63103935,82.7,82.633,121.8]
[1646649760111,1.63103935,82.701,82.633,121.8]
[1646649760513,1.63103935,82.7,82.632,24.6411]
[1646649760713,1.63103935,82.691,82.632,24.6411]
[1646649760913,1.63103935,82.687,82.632,24.6411]
[1646649761112,1.63103935,82.687,82.653,0.18571062]
[1646649762313,1.63103935,82.696,82.653,0.18571062]
[1646649762511,46.4694,82.699,82.653,0.18571062]
[1646649762512,1.63103935,82.697,82.653,0.18571062]
[1646649762712,1.63103935,82.694,82.653,0.18571062]
[1646649763313,1.63103935,82.695,82.653,0.18571062]
[1646649763915,108.13393868,82.699,82.653,0.18571062]
[1646649763916,1.63103935,82.693,82.653,0.18571062]
[1646649764813,1.63103935,82.694,82.653,0.18571062]
[1646649765013,1.63103935,82.693,82.653,0.18571062]
[1646649765215,1.63103935,82.691,82.653,0.18571062]
[1646649765415,1.63103935,82.69,82.653,0.18571062]
[1646649765614,1.63103935,82.691,82.653,0.18571062]
[1646649766414,1.63103935,82.69,82.653,0.18571062]
[1646649767018,1.63103935,82.688,82.653,0.18571062]
[1646649767820,1.63103935,82.687,82.653,0.18571062]
[1646649768020,63.2794204,82.686,82.653,0.18571062]
[1646649768420,1.63103935,82.685,82.653,0.18571062]
[1646649768920,1.63103935,82.679,82.653,0.18571062]
[1646649770041,1.63103935,82.679,82.621,0.11618064]
[1646649770318,23.456,82.685,82.62,32.8324]
[1646649770319,1.63103935,82.678,82.62,32.8324]
[1646649770719,1.63103935,82.679,82.62,32.8324]
[1646649771121,1.63103935,82.679,82.62,14.68]
[1646649771520,61.37227269,82.67,82.62,14.68]
[1646649772420,61.37227269,82.67,82.613,23.549]
[1646649773522,1.63103935,82.671,82.613,23.549]
[1646649773723,1.63103935,82.671,82.614,0.23481842]
[1646649774723,1.63103935,82.673,82.613,23.549]
[1646649775124,1.63103935,82.672,82.613,23.549]
[1646649775823,1.63103935,82.672,82.614,6.05]
[1646649776223,1.63103935,82.673,82.614,6.05]
[1646649777024,1.63103935,82.668,82.614,6.05]
[1646649777425,1.63103935,82.667,82.614,6.05]
[1646649777624,1.63103935,82.669,82.61,14.68]
[1646649778426,1.63103935,82.672,82.61,14.68]
[1646649779526,1.63103935,82.673,82.61,14.68]
[1646649779926,1.63103935,82.672,82.61,14.68]
[1646649780927,1.63103935,82.673,82.611,6.05]
[1646649781127,1.63103935,82.676,82.612,0.60168812]
[1646649781727,1.63103935,82.676,82.613,6.05]
[1646649781930,58.50221826,82.675,82.614,0.60168812]
[1646649782126,60.13325761,82.675,82.615,6.05]
[1646649782327,1.63103935,82.672,82.611,6.049]
[1646649783026,1.63103935,82.672,82.61,14.68]
[1646649783226,1.63103935,82.671,82.61,14.68]
[1646649784029,1.63103935,82.671,82.611,6.05]
[1646649784431,1.63103935,82.668,82.611,6.05]
[1646649784631,1.63103935,82.666,82.611,6.05]
[1646649785051,1.63103935,82.666,82.61,14.68]
[1646649785951,1.63103935,82.664,82.61,14.68]
[1646649786452,1.63103935,82.665,82.6,1656.63242838]
[1646649786653,1.63103935,82.66,82.6,1656.63242838]
[1646649786853,1.63103935,82.646,82.6,1656.63242838]
[1646649787054,57.51951172,82.659,82.6,1656.63242838]
[1646649787055,1.63103935,82.636,82.6,1656.63242838]
[1646649788251,1.63103935,82.641,82.6,1656.63242838]
[1646649788452,1.63103935,82.642,82.6,1656.63242838]
[1646649789052,1.63103935,82.639,82.6,1656.63242838]
[1646649789254,1.63103935,82.643,82.6,1656.63242838]
[1646649789854,1.63103935,82.642,82.6,1656.63242838]
[1646649790254,1.63103935,82.647,82.601,0.13486805]
[1646649790455,1.63103935,82.656,82.601,0.13486805]
[1646649790655,1.63103935,82.657,82.602,6.051]
[1646649791056,1.63103935,82.658,82.603,0.60168812]
[1646649791255,22.5417,82.667,82.603,0.60168812]
[1646649791654,22.5417,82.667,82.601,121.8]
[1646649791655,22.5417,82.667,82.605,0.60168812]
[1646649791857,22.5417,82.667,82.621,0.60168812]
[1646649792055,1.63103935,82.675,82.621,122.40168812]
[1646649792455,1.63103935,82.682,82.623,0.60168812]
[1646649792657,24.47723935,82.686,82.625,0.60168812]
[1646649792858,1.63103935,82.683,82.627,0.60168812]
[1646649793058,1.63103935,82.683,82.611,121.8]
[1646649793259,1.63103935,82.68,82.62,14.68]
[1646649793559,1.63103935,82.678,82.62,14.68]
[1646649793760,48.06884776,82.677,82.621,6.049]
[1646649793960,1.63103935,82.679,82.621,6.049]
[1646649794763,1.63103935,82.68,82.62,14.68]
[1646649794961,48.68657533,82.68,82.62,14.68]
[1646649795361,1.63103935,82.679,82.621,121.8]
[1646649795561,1.63103935,82.68,82.621,121.8]
[1646649795860,1.63103935,82.681,82.621,121.8]
[1646649796260,1.63103935,82.683,82.621,121.8]
[1646649796460,1.63103935,82.682,82.621,121.8]
[1646649796661,1.63103935,82.682,82.622,6.049]
[1646649797161,1.63103935,82.682,82.63,18.1498]
[1646649797463,1.63103935,82.682,82.631,6.049]
[1646649797963,1.63103935,82.683,82.631,6.049]
[1646649798162,1.63103935,82.682,82.631,6.049]
[1646649798763,22.8462,82.686,82.631,6.049]
[1646649798764,1.63103935,82.678,82.631,6.049]
[1646649798964,1.63103935,82.675,82.631,6.049]
[1646649799164,56.98478805,82.674,82.631,6.049]
[1646649799365,1.63103935,82.667,82.611,6.049]
[1646649799565,1.63103935,82.666,82.611,6.049]
[1646649800367,1.63103935,82.661,82.611,6.049]
[1646649800568,1.63103935,82.656,82.611,6.049]
[1646649800773,1.63103935,82.656,82.6,1656.63242838]
[1646649801475,1.63103935,82.656,82.601,6.051]
[1646649801768,1.63103935,82.658,82.601,6.051]
[1646649801968,24.947,82.659,82.601,6.051]
[1646649802667,24.947,82.659,82.61,18.1544]
[1646649803069,24.947,82.659,82.611,0.18405994]
[1646649803867,24.947,82.659,82.61,14.68]
[1646649804270,24.947,82.659,82.611,121.8]
[1646649804567,1.63103935,82.665,82.612,0.26306403]
[1646649804767,1.63103935,82.667,82.612,0.26306403]
[1646649805367,1.63103935,82.667,82.613,6.05]
[1646649805568,1.63103935,82.671,82.614,0.26306403]
[1646649805768,1.63103935,82.676,82.614,0.26306403]
[1646649805971,26.18403935,82.68,82.614,0.26306403]
[1646649806369,1.63103935,82.676,82.611,127.849]
[1646649806873,1.63103935,82.675,82.611,127.849]
[1646649807070,1.63103935,82.676,82.611,127.849]
[1646649807271,1.63103935,82.675,82.611,127.849]
[1646649807471,1.63103935,82.676,82.611,127.849]
[1646649807673,1.63103935,82.677,82.611,127.849]
[1646649807872,1.63103935,82.678,82.612,0.2167042]
[1646649808070,24.553,82.68,82.612,0.2167042]
[1646649808071,26.18403935,82.68,82.612,0.2167042]
[1646649808470,1.63103935,82.679,82.612,0.2167042]
[1646649808670,26.18403935,82.68,82.621,121.8]
[1646649808869,26.18403935,82.68,82.62,14.68]
[1646649809070,1.63103935,82.674,82.62,14.68]
[1646649809470,1.63103935,82.676,82.62,14.68]
[1646649809670,1.63103935,82.675,82.621,6.049]